fUSD/lending_fUSD_20240627
["ID","MTS","AMOUNT","RATE_DAILY","PERIOD"]
[330477279,1719470802781,-1159.09,0.00044931,120]
[330477280,1719470802888,-365.22968241,0.00044931,120]
[330477281,1719470802928,-1465.18,0.00044931,120]
[330477282,1719470802967,-500.0,0.00044931,120]
[330477283,1719470803004,-483.39135486,0.00044931,120]
[330477284,1719470803041,-500.0,0.00044931,120]
[330477285,1719470803079,-500.0,0.00044931,120]
[330477286,1719470803119,-500.0,0.00044931,120]
[330477287,1719470803156,-500.0,0.00044931,120]
[330477288,1719470803195,-500.0,0.00044931,120]
[330477289,1719470803234,-614.57,0.00044931,120]
[330477290,1719470803273,-932.71,0.00044931,120]
[330477291,1719470803311,-500.0,0.00044931,120]
[330477292,1719470803351,-271.47634376,0.00044931,120]
[330477293,1719470803389,-500.0,0.00044931,120]
[330477294,1719470803429,-1664.59,0.00044931,120]
[330477295,1719470803469,-596.39777558,0.00044931,120]
[330477296,1719470803510,-1009.42,0.00044931,120]
[330477297,1719470803551,-500.0,0.00044931,120]
[330477298,1719470803590,-829.26,0.00044931,120]
[330477299,1719470803629,-500.0,0.00044931,120]
[330477300,1719470803668,-637.61,0.00044931,120]
[330477301,1719470803706,-500.0,0.00044931,120]
[330477302,1719470803744,-500.0,0.00044931,120]
[330477303,1719470803782,-500.0,0.00044931,120]
[330477304,1719470803824,-1581.4,0.00044931,120]
[330477305,1719470803863,-500.0,0.00044931,120]
[330477306,1719470803901,-500.0,0.00044931,120]
[330477307,1719470803937,-500.0,0.00044931,120]
[330477308,1719470803976,-500.0,0.00044931,120]
[330477309,1719470804012,-500.0,0.00044931,120]
[330477310,1719470804052,-500.0,0.00044931,120]
[330477311,1719470804090,-500.0,0.00044931,120]
[330477312,1719470804126,-500.0,0.00044931,120]
[330477313,1719470804162,-500.0,0.00044931,120]
[330477314,1719470804199,-798.16,0.00044931,120]
[330477315,1719470804237,-1903.57,0.00044931,120]
[330477316,1719470804280,-500.0,0.00044931,120]
[330477317,1719470804319,-500.0,0.00044931,120]
[330477318,1719470804358,-579.43,0.00044931,120]
[330477319,1719470804395,-500.0,0.00044931,120]
[330477320,1719470804432,-500.0,0.00044931,120]
[330477321,1719470804468,-585.48,0.00044931,120]
[330477322,1719470804504,-500.0,0.00044931,120]
[330477323,1719470804540,-305.79001066,0.00044931,120]
[330477324,1719470804575,-570.89510071,0.00044931,120]
[330477325,1719470804612,-608.79,0.00044931,120]
[330477326,1719470804649,-693.21,0.00044931,120]
[330477327,1719470804686,-500.0,0.00044931,120]
[330477328,1719470804720,-500.0,0.00044931,120]
[330477329,1719470804755,-500.0,0.00044931,120]
[330477330,1719470804791,-962.19,0.00044931,120]
[330477331,1719470804828,-582.13,0.00044931,120]
[330477332,1719470804865,-500.0,0.00044931,120]
[330477333,1719470804900,-500.0,0.00044931,120]
[330477334,1719470804936,-500.0,0.00044931,120]
[330477335,1719470804973,-558.82,0.00044931,120]
[330477336,1719470805010,-500.0,0.00044931,120]
[330477337,1719470805047,-500.0,0.00044931,120]
[330477338,1719470805084,-535.37,0.00044931,120]
[330477339,1719470805120,-500.0,0.00044931,120]
[330477340,1719470805159,-945.8,0.00044931,120]
[330477341,1719470805195,-641.46,0.00044931,120]
[330477342,1719470805233,-500.0,0.00044931,120]
[330477343,1719470805273,-743.41,0.00044931,120]
[330477344,1719470805315,-555.35,0.00044931,120]
[330477345,1719470805355,-500.0,0.00044931,120]
[330477346,1719470805395,-500.0,0.00044931,120]
[330477347,1719470805434,-3424.05,0.00044931,120]
[330477348,1719470805473,-500.0,0.00044931,120]
[330477349,1719470805511,-2292.12,0.00044931,120]
[330477350,1719470805550,-511.38,0.00044931,120]
[330477351,1719470805587,-1789.95,0.00044931,120]
[330477352,1719470805624,-556.1,0.00044931,120]
[330477353,1719470805662,-677.72,0.00044931,120]
[330477354,1719470805700,-1139.96,0.00044931,120]
[330477355,1719470805738,-2037.17,0.00044931,120]
[330477356,1719470805774,-1069.35,0.00044931,120]
[330477357,1719470805812,-500.0,0.00044931,120]
[330477358,1719470805849,-500.0,0.00044931,120]
[330477359,1719470805886,-500.0,0.00044931,120]
[330477360,1719470805923,-500.0,0.00044931,120]
[330477361,1719470805959,-1597.79,0.00044931,120]
[330477362,1719470805997,-994.61,0.00044931,120]
[330477363,1719470806035,-500.0,0.00044931,120]
[330477364,1719470806072,-500.0,0.00044931,120]
[330477365,1719470806111,-500.0,0.00044931,120]
[330477366,1719470806149,-500.0,0.00044931,120]
[330477367,1719470806186,-500.0,0.00044931,120]
[330477368,1719470806224,-500.0,0.00044931,120]
[330477369,1719470806262,-1273.36,0.00044931,120]
[330477370,1719470806304,-500.0,0.00044931,120]
[330477371,1719470806346,-382.9628393,0.00044931,120]
[330477372,1719470806384,-591.6,0.00044931,120]
[330477373,1719470806425,-11245.17,0.00044931,120]
[330477374,1719470806464,-500.0,0.00044931,120]
[330477375,1719470806502,-500.0,0.00044931,120]
[330477376,1719470806539,-500.0,0.00044931,120]
[330477377,1719470806576,-500.0,0.00044931,120]
[330477378,1719470806613,-500.0,0.00044931,120]
[330477379,1719470806652,-500.0,0.00044931,120]
[330477380,1719470806690,-1337.87,0.00044931,120]
[330477381,1719470806728,-637.26,0.00044931,120]
[330477382,1719470806764,-500.0,0.00044931,120]
[330477383,1719470806799,-500.0,0.00044931,120]
[330477384,1719470807002,-500.0,0.00044931,120]
[330477385,1719470807042,-500.0,0.00044931,120]
[330477386,1719470807082,-502.69,0.00044931,120]
[330477387,1719470807121,-500.0,0.00044931,120]
[330477388,1719470807158,-725.24,0.00044931,120]
[330477389,1719470807195,-500.0,0.00044931,120]
[330477390,1719470807234,-500.0,0.00044931,120]
[330477391,1719470807276,-1308.09,0.00044931,120]
[330477392,1719470807314,-500.0,0.00044931,120]
[330477393,1719470807353,-500.0,0.00044931,120]
[330477394,1719470807389,-500.0,0.00044931,120]
[330477395,1719470807427,-500.0,0.00044931,120]
[330477396,1719470807463,-718.58,0.00044931,120]
[330477397,1719470807500,-619.50712394,0.00044931,120]
[330477398,1719470807536,-606.03457483,0.00044931,120]
[330477399,1719470807571,-500.0,0.00044931,120]
[330477400,1719470807605,-946.37,0.00044931,120]
[330477401,1719470807640,-500.0,0.00044931,120]
[330477402,1719470807676,-500.0,0.00044931,120]
[330477403,1719470807713,-500.0,0.00044931,120]
[330477404,1719470807749,-500.0,0.00044931,120]
[330477405,1719470807785,-500.0,0.00044931,120]
[330477406,1719470807819,-500.0,0.00044931,120]
[330477407,1719470807853,-500.0,0.00044931,120]
[330477408,1719470807890,-500.0,0.00044931,120]
[330477409,1719470807927,-502.79680925,0.00044931,120]
[330477410,1719470807966,-500.0,0.00044931,120]
[330477411,1719470808002,-757.03,0.00044931,120]
[330477412,1719470808038,-500.0,0.00044931,120]
[330477413,1719470808076,-500.0,0.00044931,120]
[330477414,1719470808115,-500.0,0.00044931,120]
[330477415,1719470808154,-549.18,0.00044931,120]
[330477416,1719470808190,-1278.0,0.00044931,120]
[330477417,1719470808227,-566.01,0.00044931,120]
[330477418,1719470808265,-500.0,0.00044931,120]
[330477419,1719470808306,-500.0,0.00044931,120]
[330477420,1719470808345,-500.0,0.00044931,120]
[330477421,1719470808382,-520.02370443,0.00044931,120]
[330477422,1719470808422,-500.0,0.00044931,120]
[330477423,1719470808462,-1533.08,0.00044931,120]
[330477424,1719470808501,-2331.46,0.00044931,120]
[330477425,1719470808538,-500.0,0.00044931,120]
[330477426,1719470808578,-500.0,0.00044931,120]
[330477427,1719470808617,-500.0,0.00044931,120]
[330477428,1719470808661,-1927.68,0.00044931,120]
[330477429,1719470808699,-500.0,0.00044931,120]
[330477430,1719470808736,-27172.75,0.00044931,120]
[330477431,1719470808774,-26040.55,0.00044931,120]
[330477432,1719470808811,-500.0,0.00044931,120]
[330477433,1719470808845,-500.0,0.00044931,120]
[330477434,1719470808882,-500.0,0.00044931,120]
[330477435,1719470808919,-500.0,0.00044931,120]
[330477436,1719470808958,-500.0,0.00044931,120]
[330477437,1719470808997,-500.0,0.00044931,120]
[330477438,1719470809035,-500.0,0.00044931,120]
[330477439,1719470809071,-500.0,0.00044931,120]
[330477440,1719470809108,-500.0,0.00044931,120]
[330477441,1719470809148,-500.0,0.00044931,120]
[330477442,1719470809187,-500.0,0.00044931,120]
[330477443,1719470809223,-500.0,0.00044931,120]
[330477444,1719470809259,-500.0,0.00044931,120]
[330477445,1719470809299,-500.0,0.00044931,120]
[330477446,1719470809335,-586.27,0.00044931,120]
[330477447,1719470809373,-500.0,0.00044931,120]
[330477448,1719470809410,-671.6,0.00044931,120]
[330477449,1719470809448,-507.15228665,0.00044931,120]
[330477450,1719470809485,-500.0,0.00044931,120]
[330477451,1719470809521,-1323.97,0.00044931,120]
[330477452,1719470809558,-389.14,0.00044931,120]
[330477453,1719470809595,-500.0,0.00044931,120]
[330477454,1719470809631,-687.5,0.00044931,120]
[330477455,1719470809668,-632.33562062,0.00044931,120]
[330477456,1719470809704,-500.0,0.00044931,120]
[330477457,1719470809740,-500.0,0.00044931,120]
[330477458,1719470809777,-516.64,0.00044931,120]
[330477459,1719470809815,-500.0,0.00044931,120]
[330477460,1719470809854,-500.0,0.00044931,120]
[330477461,1719470809890,-784.71,0.00044931,120]
[330477462,1719470809925,-564.87,0.00044931,120]
[330477463,1719470809962,-500.0,0.00044931,120]
[330477464,1719470809999,-500.0,0.00044931,120]
[330477465,1719470810035,-500.0,0.00044931,120]
[330477466,1719470810073,-500.0,0.00044931,120]
[330477467,1719470810109,-500.0,0.00044931,120]
[330477468,1719470810147,-500.0,0.00044931,120]
[330477469,1719470810183,-500.0,0.00044931,120]
[330477470,1719470810222,-542.11,0.00044931,120]
[330477471,1719470810259,-500.0,0.00044931,120]
[330477472,1719470810301,-500.0,0.00044931,120]
[330477473,1719470810339,-500.0,0.00044931,120]
[330477474,1719470810681,-500.0,0.00044931,120]
[330477475,1719470810721,-500.0,0.00044931,120]
[330477476,1719470810759,-1797.8,0.00044931,120]
[330477477,1719470810798,-829.66,0.00044931,120]
[330477478,1719470810836,-1396.29,0.00044931,120]
[330477479,1719470810873,-500.0,0.00044931,120]
[330477480,1719470810911,-500.0,0.00044931,120]
[330477481,1719470810950,-782.33,0.00044931,120]
[330477482,1719470810986,-784.1,0.00044931,120]
[330477483,1719470811022,-754.87,0.00044931,120]
[330477484,1719470811059,-500.0,0.00044931,120]
[330477485,1719470811096,-500.0,0.00044931,120]
[330477486,1719470811134,-500.0,0.00044931,120]
[330477487,1719470811173,-500.0,0.00044931,120]
[330477488,1719470811213,-500.57,0.00044931,120]
[330477489,1719470811252,-500.0,0.00044931,120]
[330477490,1719470811292,-500.0,0.00044931,120]
[330477491,1719470811331,-1600.16,0.00044931,120]
[330477492,1719470811368,-500.0,0.00044931,120]
[330477493,1719470811409,-500.0,0.00044931,120]
[330477494,1719470811448,-500.0,0.00044931,120]
[330477495,1719470811487,-500.0,0.00044931,120]
[330477496,1719470811528,-500.0,0.00044931,120]
[330477497,1719470811565,-561.17,0.00044931,120]
[330477498,1719470811604,-1509.02,0.00044931,120]
[330477499,1719470811642,-500.0,0.00044931,120]
[330477500,1719470811680,-2361.82,0.00044931,120]
[330477501,1719470811719,-500.0,0.00044931,120]
[330477502,1719470811757,-1563.42,0.00044931,120]
[330477503,1719470811796,-500.0,0.00044931,120]
[330477504,1719470811835,-500.0,0.00044931,120]
[330477505,1719470811875,-1273.2,0.00044931,120]
[330477506,1719470811914,-856.57,0.00044931,120]
[330477507,1719470811953,-500.0,0.00044931,120]
[330477508,1719470811992,-754.02,0.00044931,120]
[330477509,1719470812031,-532.67,0.00044931,120]
[330477510,1719470812070,-782.31,0.00044931,120]
[330477511,1719470812108,-500.0,0.00044931,120]
[330477512,1719470812148,-500.0,0.00044931,120]
[330477513,1719470812186,-500.0,0.00044931,120]
[330477514,1719470812222,-4687.31,0.00044931,120]
[330477515,1719470812260,-687.18,0.00044931,120]
[330477516,1719470812301,-500.0,0.00044931,120]
[330477517,1719470812353,-500.0,0.00044931,120]
[330477518,1719470812390,-500.0,0.00044931,120]
[330477519,1719470812428,-780.27,0.00044931,120]
[330477520,1719470812466,-529.25,0.00044931,120]
[330477521,1719470812506,-500.0,0.00044931,120]
[330477522,1719470812545,-1044.52,0.00044931,120]
[330477523,1719470812582,-500.0,0.00044931,120]
[330477524,1719470812616,-1151.75,0.00044931,120]
[330477525,1719470812653,-520.35,0.00044931,120]
[330477526,1719470812689,-2501.01,0.00044931,120]
[330477527,1719470812727,-986.4,0.00044931,120]
[330477528,1719470812763,-500.26,0.00044931,120]
[330477529,1719470812800,-500.0,0.00044931,120]
[330477530,1719470812836,-1046.1,0.00044931,120]
[330477531,1719470812873,-1541.75,0.00044931,120]
[330477532,1719470812912,-3067.76,0.00044931,120]
[330477533,1719470812948,-1871.0,0.00044931,120]
[330477534,1719470812986,-500.0,0.00044931,120]
[330477535,1719470813026,-500.0,0.00044931,120]
[330477536,1719470813064,-576.51,0.00044931,120]
[330477537,1719470813104,-500.0,0.00044931,120]
[330477538,1719470813143,-500.0,0.00044931,120]
[330477539,1719470813181,-1304.5,0.00044931,120]
[330477540,1719470813219,-1003.17,0.00044931,120]
[330477541,1719470813257,-500.0,0.00044931,120]
[330477542,1719470813299,-879.02,0.00044931,120]
[330477543,1719470813338,-721.95,0.00044931,120]
[330477544,1719470813380,-500.0,0.00044931,120]
[330477545,1719470813417,-574.06,0.00044931,120]
[330477546,1719470813531,-500.0,0.00044931,120]
[330477547,1719470813572,-500.0,0.00044931,120]
[330477548,1719470813610,-2226.61,0.00044931,120]
[330477549,1719470813649,-2501.35,0.00044931,120]
[330477550,1719470813687,-951.42,0.00044931,120]
[330477551,1719470813726,-834.19,0.00044931,120]
[330477552,1719470813765,-500.0,0.00044931,120]
[330477553,1719470813800,-500.0,0.00044931,120]
[330477554,1719470813837,-500.0,0.00044931,120]
[330477555,1719470813876,-500.0,0.00044931,120]
[330477556,1719470813913,-500.0,0.00044931,120]
[330477557,1719470813950,-2501.31,0.00044931,120]
[330477558,1719470813987,-2615.24,0.00044931,120]
[330477559,1719470814022,-500.0,0.00044931,120]
[330477560,1719470814058,-500.0,0.00044931,120]
[330477561,1719470814096,-1566.08,0.00044931,120]
[330477562,1719470814133,-500.0,0.00044931,120]
[330477563,1719470814171,-1063.16,0.00044931,120]
[330477564,1719470814209,-1538.18,0.00044931,120]
[330477565,1719470814248,-548.81,0.00044931,120]
[330477566,1719470814287,-500.0,0.00044931,120]
[330477567,1719470814324,-500.0,0.00044931,120]
[330477568,1719470814363,-500.0,0.00044931,120]
[330477569,1719470814405,-2319.49,0.00044931,120]
[330477570,1719470814448,-500.0,0.00044931,120]
[330477571,1719470814487,-1643.89,0.00044931,120]
[330477572,1719470814526,-500.0,0.00044931,120]
[330477573,1719470814564,-500.0,0.00044931,120]
[330477574,1719470814604,-2222.84,0.00044931,120]
[330477575,1719470814643,-727.31,0.00044931,120]
[330477576,1719470814686,-2049.55,0.00044931,120]
[330477577,1719470814723,-2335.18,0.00044931,120]
[330477578,1719470814760,-792.45,0.00044931,120]
[330477579,1719470814796,-500.0,0.00044931,120]
[330477580,1719470814832,-747.69,0.00044931,120]
[330477581,1719470814870,-997.67,0.00044931,120]
[330477582,1719470814908,-565.2,0.00044931,120]
[330477583,1719470814946,-500.0,0.00044931,120]
[330477584,1719470814989,-500.0,0.00044931,120]
[330477585,1719470815028,-1048.58,0.00044931,120]
[330477586,1719470815066,-581.97,0.00044931,120]
[330477587,1719470815104,-543.02,0.00044931,120]
[330477588,1719470815142,-500.0,0.00044931,120]
[330477589,1719470815179,-500.0,0.00044931,120]
[330477590,1719470815217,-500.0,0.00044931,120]
[330477591,1719470815256,-500.0,0.00044931,120]
[330477592,1719470815295,-1840.86,0.00044931,120]
[330477593,1719470815334,-1367.68,0.00044931,120]
[330477594,1719470815373,-500.0,0.00044931,120]
[330477595,1719470815411,-846.38,0.00044931,120]
[330477596,1719470815464,-1518.38,0.00044931,120]
[330477597,1719470815505,-1190.23,0.00044931,120]
[330477598,1719470815544,-1232.26,0.00044931,120]
[330477599,1719470815584,-500.0,0.00044931,120]
[330477600,1719470815622,-1670.85,0.00044931,120]
[330477601,1719470815661,-500.0,0.00044931,120]
[330477602,1719470815699,-500.0,0.00044931,120]
[330477603,1719470815738,-500.0,0.00044931,120]
[330477604,1719470815777,-2921.04,0.00044931,120]
[330477605,1719470815814,-738.36,0.00044931,120]
[330477606,1719470815851,-500.0,0.00044931,120]
[330477607,1719470815889,-609.6,0.00044931,120]
[330477608,1719470815928,-1022.95,0.00044931,120]
[330477609,1719470815967,-500.0,0.00044931,120]
[330477610,1719470816005,-500.0,0.00044931,120]
[330477611,1719470816044,-2298.25,0.00044931,120]
[330477612,1719470816083,-500.0,0.00044931,120]
[330477613,1719470816123,-1715.04,0.00044931,120]
[330477614,1719470816160,-500.0,0.00044931,120]
[330477615,1719470816198,-5051.87,0.00044931,120]
[330477616,1719470816238,-500.0,0.00044931,120]
[330477617,1719470816278,-500.0,0.00044931,120]
[330477618,1719470816318,-552.27,0.00044931,120]
[330477619,1719470816356,-500.0,0.00044931,120]
[330477620,1719470816402,-500.0,0.00044931,120]
[330477621,1719470816442,-500.0,0.00044931,120]
[330477622,1719470816484,-1084.3,0.00044931,120]
[330477623,1719470816522,-500.0,0.00044931,120]
[330477624,1719470816560,-500.0,0.00044931,120]
[330477625,1719470816601,-168.3,0.00044931,120]
[330477626,1719470816639,-500.0,0.00044931,120]
[330477627,1719470816679,-563.99,0.00044931,120]
[330477628,1719470816719,-413.58134539,0.00044931,120]
[330477629,1719470816756,-500.0,0.00044931,120]
[330477630,1719470816794,-500.0,0.00044931,120]
[330477631,1719470816830,-500.0,0.00044931,120]
[330477632,1719470816868,-725.04,0.00044931,120]
[330477633,1719470816907,-500.0,0.00044931,120]
[330477634,1719470816944,-2049.92,0.00044931,120]
[330477635,1719470816981,-500.0,0.00044931,120]
[330477636,1719470817018,-500.0,0.00044931,120]
[330477637,1719470817056,-718.17,0.00044931,120]
[330477638,1719470817095,-1276.49,0.00044931,120]
[330477639,1719470817133,-500.0,0.00044931,120]
[330477640,1719470817172,-522.15,0.00044931,120]
[330477641,1719470817210,-1268.37,0.00044931,120]
[330477642,1719470817251,-500.0,0.00044931,120]
[330477643,1719470817295,-1526.45,0.00044931,120]
[330477644,1719470817335,-500.0,0.00044931,120]
[330477645,1719470817375,-500.0,0.00044931,120]
[330477646,1719470817414,-4324.46,0.00044931,120]
[330477647,1719470817454,-500.0,0.00044931,120]
[330477648,1719470817494,-699.36,0.00044931,120]
[330477649,1719470817535,-500.0,0.00044931,120]
[330477650,1719470817838,-696.16,0.00044931,120]
[330477651,1719470817884,-1864.6,0.00044931,120]
[330477652,1719470817925,-2187.6,0.00044931,120]
[330477653,1719470817963,-500.0,0.00044931,120]
[330477654,1719470818002,-1496.44,0.00044931,120]
[330477655,1719470818039,-500.0,0.00044931,120]
[330477656,1719470818075,-500.0,0.00044931,120]
[330477657,1719470818112,-500.0,0.00044931,120]
[330477658,1719470818152,-500.0,0.00044931,120]
[330477659,1719470818191,-500.0,0.00044931,120]
[330477660,1719470818227,-606.91,0.00044931,120]
[330477661,1719470818263,-656.81,0.00044931,120]
[330477662,1719470818303,-4053.69,0.00044931,120]
[330477663,1719470818338,-1623.32,0.00044931,120]
[330477664,1719470818372,-500.0,0.00044931,120]
[330477665,1719470818411,-654.85,0.00044931,120]
[330477666,1719470818451,-1297.57,0.00044931,120]
[330477667,1719470818490,-552.9,0.00044931,120]
[330477668,1719470818529,-1423.34,0.00044931,120]
[330477669,1719470818567,-1928.61,0.00044931,120]
[330477670,1719470818605,-1548.18,0.00044931,120]
[330477671,1719470818643,-797.49,0.00044931,120]
[330477672,1719470818683,-500.0,0.00044931,120]
[330477673,1719470818720,-1130.37,0.00044931,120]
[330477674,1719470818758,-500.0,0.00044931,120]
[330477675,1719470818795,-504.28,0.00044931,120]
[330477676,1719470818831,-1267.08,0.00044931,120]
[330477677,1719470818864,-1862.28,0.00044931,120]
[330477678,1719470818903,-500.0,0.00044931,120]
[330477679,1719470818937,-500.0,0.00044931,120]
[330477680,1719470818972,-560.09,0.00044931,120]
[330477681,1719470819006,-500.0,0.00044931,120]
[330477682,1719470819041,-500.0,0.00044931,120]
[330477683,1719470819090,-3128.17,0.00044931,120]
[330477684,1719470819131,-500.0,0.00044931,120]
[330477685,1719470819167,-851.58,0.00044931,120]
[330477686,1719470819205,-766.04,0.00044931,120]
[330477687,1719470819241,-500.0,0.00044931,120]
[330477688,1719470819282,-500.0,0.00044931,120]
[330477689,1719470819321,-507.85,0.00044931,120]
[330477690,1719470819359,-798.94,0.00044931,120]
[330477691,1719470819399,-1773.55,0.00044931,120]
[330477692,1719470819435,-500.0,0.00044931,120]
[330477693,1719470819471,-1353.25,0.00044931,120]
[330477694,1719470819507,-200.0,0.00044931,120]
[330477695,1719470819544,-500.0,0.00044931,120]
[330477696,1719470819581,-500.0,0.00044931,120]
[330477697,1719470819617,-1674.58,0.00044931,120]
[330477698,1719470819654,-500.0,0.00044931,120]
[330477699,1719470819690,-500.0,0.00044931,120]
[330477700,1719470819725,-651.37,0.00044931,120]
[330477701,1719470819760,-655.48,0.00044931,120]
[330477702,1719470819796,-3049.52,0.00044931,120]
[330477703,1719470819830,-592.0,0.00044931,120]
[330477704,1719470819865,-500.0,0.00044931,120]
[330477705,1719470819901,-858.84,0.00044931,120]
[330477706,1719470819937,-787.74,0.00044931,120]
[330477707,1719470819974,-500.0,0.00044931,120]
[330477708,1719470820011,-3098.43,0.00044931,120]
[330477709,1719470820048,-500.0,0.00044931,120]
[330477710,1719470820086,-3145.75,0.00044931,120]
[330477711,1719470820124,-3659.1,0.00044931,120]
[330477712,1719470820164,-500.0,0.00044931,120]
[330477713,1719470820202,-746.47,0.00044931,120]
[330477714,1719470820242,-500.0,0.00044931,120]
[330477715,1719470820282,-1341.57,0.00044931,120]
[330477716,1719470820322,-934.72,0.00044931,120]
[330477717,1719470820361,-500.0,0.00044931,120]
[330477718,1719470820400,-500.0,0.00044931,120]
[330477719,1719470820440,-898.43,0.00044931,120]
[330477720,1719470820479,-1650.24,0.00044931,120]
[330477721,1719470820517,-706.58,0.00044931,120]
[330477722,1719470820555,-5133.18,0.00044931,120]
[330477723,1719470820592,-697.55,0.00044931,120]
[330477724,1719470820632,-500.0,0.00044931,120]
[330477725,1719470820673,-1378.4,0.00044931,120]
[330477726,1719470820711,-500.0,0.00044931,120]
[330477727,1719470820747,-2690.47,0.00044931,120]
[330477728,1719470820783,-500.0,0.00044931,120]
[330477729,1719470820821,-3275.62,0.00044931,120]
[330477730,1719470820861,-2226.22,0.00044931,120]
[330477731,1719470820898,-2016.9,0.00044931,120]
[330477732,1719470820934,-546.26,0.00044931,120]
[330477733,1719470820971,-717.57,0.00044931,120]
[330477734,1719470821007,-1240.27,0.00044931,120]
[330477735,1719470821045,-500.0,0.00044931,120]
[330477736,1719470821082,-500.0,0.00044931,120]
[330477737,1719470821120,-2456.48,0.00044931,120]
[330477738,1719470821160,-3001.87,0.00044931,120]
[330477739,1719470821198,-500.0,0.00044931,120]
[330477740,1719470821581,-500.0,0.00044931,120]
[330477741,1719470821617,-2001.44,0.00044931,120]
[330477742,1719470821654,-500.0,0.00044931,120]
[330477743,1719470821690,-909.02,0.00044931,120]
[330477744,1719470821726,-705.33,0.00044931,120]
[330477745,1719470821761,-1404.89,0.00044931,120]
[330477746,1719470821796,-500.0,0.00044931,120]
[330477747,1719470821831,-2111.06,0.00044931,120]
[330477748,1719470821869,-1426.03,0.00044931,120]
[330477749,1719470821910,-500.0,0.00044931,90]
[330477750,1719470821946,-500.0,0.00044931,120]
[330477751,1719470821981,-766.33,0.00044931,120]
[330477752,1719470822015,-2623.33,0.00044931,120]
[330477753,1719470822048,-1138.14,0.00044931,120]
[330477754,1719470822083,-1265.29,0.00044931,120]
[330477755,1719470822117,-514.81,0.00044931,120]
[330477756,1719470822152,-1666.66,0.00044931,120]
[330477757,1719470822185,-500.0,0.00044931,120]
[330477758,1719470822219,-581.92,0.00044931,120]
[330477759,1719470822255,-1004.76,0.00044931,120]
[330477760,1719470822292,-500.0,0.00044931,120]
[330477761,1719470822326,-359.5490788,0.00044931,120]
[330477762,1719470822360,-500.0,0.00044931,120]
[330477763,1719470822394,-500.0,0.00044931,120]
[330477764,1719470822430,-2680.71,0.00044931,120]
[330477765,1719470822466,-500.0,0.00044931,120]
[330477766,1719470822509,-3064.68,0.00044931,120]
[330477767,1719470822543,-930.25,0.00044931,120]
[330477768,1719470822579,-1479.68,0.00044931,120]
[330477769,1719470822616,-500.0,0.00044931,120]
[330477770,1719470822652,-500.0,0.00044931,120]
[330477771,1719470822690,-500.0,0.00044931,120]
[330477772,1719470822726,-500.0,0.00044931,120]
[330477773,1719470822769,-2451.34,0.00044931,120]
[330477774,1719470822806,-616.68470451,0.00044931,120]
[330477775,1719470822843,-500.0,0.00044931,120]
[330477776,1719470822880,-2023.42,0.00044931,120]
[330477777,1719470822916,-2611.74,0.00044931,120]
[330477778,1719470822954,-500.0,0.00044931,120]